fUST/lending_fUST_20241217
["ID","MTS","AMOUNT","RATE_DAILY","PERIOD"]
[345727342,1734435057237,-393.2931014,0.00025205,6]
[345727343,1734435057247,-500.0,0.00025205,6]
[345727344,1734435057257,-722.7,0.00025205,6]
[345727345,1734435057266,-3653.15,0.00025205,6]
[345727346,1734435057276,-5312.04,0.00025205,6]
[345727347,1734435057285,-500.0,0.00025205,6]
[345727348,1734435057295,-500.0,0.00025205,6]
[345727349,1734435057304,-291.02,0.00025205,6]
[345727350,1734435057314,-14137.99,0.00025205,6]
[345727351,1734435057323,-500.0,0.00025205,2]
[345727352,1734435057333,-829.89,0.00025205,6]
[345727353,1734435057343,-500.0,0.00025205,6]
[345727354,1734435057351,-548.2,0.00025205,6]
[345727355,1734435057361,-923.17,0.00025205,6]
[345727356,1734435057370,-500.0,0.00025205,6]
[345727357,1734435057379,-500.0,0.00025205,6]
[345727358,1734435057388,-500.0,0.00025205,6]
[345727359,1734435057398,-500.0,0.00025205,6]
[345727360,1734435057407,-3964.39,0.00025205,5]
[345727361,1734435057416,-985.25,0.00025205,6]
[345727362,1734435057425,-500.0,0.00025205,6]
[345727363,1734435057435,-500.0,0.00025205,6]
[345727364,1734435057443,-1050.66,0.00025205,6]
[345727365,1734435057452,-815.28,0.00025205,6]
[345727366,1734435057461,-500.0,0.00025205,6]
[345727367,1734435057470,-1866.66,0.00025205,6]
[345727368,1734435057480,-724.94,0.00025205,6]
[345727369,1734435057490,-500.0,0.00025205,6]
[345727370,1734435057499,-554.4,0.00025205,6]
[345727371,1734435057509,-734.67,0.00025205,6]
[345727372,1734435057519,-817.91,0.00025205,6]
[345727373,1734435057531,-661.27,0.00025205,6]
[345727374,1734435057540,-654.03,0.00025205,2]
[345727375,1734435057550,-500.0,0.00025205,6]
[345727376,1734435057560,-500.0,0.00025205,6]
[345727377,1734435057569,-735.37,0.00025205,6]
[345727378,1734435057579,-500.0,0.00025205,6]
[345727379,1734435057589,-500.0,0.00025205,6]
[345727380,1734435057598,-2024.81,0.00025205,6]
[345727381,1734435057609,-497.0,0.00025205,2]
[345727382,1734435057619,-581.5,0.00025205,6]
[345727383,1734435057628,-563.13834674,0.00025205,6]
[345727384,1734435057638,-500.0,0.00025205,6]
[345727385,1734435057648,-500.0,0.00025205,6]
[345727386,1734435057658,-500.0,0.00025205,6]
[345727387,1734435057667,-500.0,0.00025205,6]
[345727388,1734435057677,-500.0,0.00025205,6]
[345727389,1734435057802,-500.0,0.00025205,6]
[345727390,1734435057812,-500.0,0.00025205,6]
[345727391,1734435057822,-500.0,0.00025205,6]
[345727392,1734435057834,-500.0,0.00025205,6]
[345727393,1734435057849,-3000.0,0.0002521,2]
[345727394,1734435057864,-3000.0,0.0002522,2]
[345727395,1734435057876,-1000.0,0.00025221,2]
[345727396,1734435057890,-150.49188472,0.00025221,2]
[345727397,1734435057903,-1000.0,0.00025221,2]
[345727398,1734435057913,-1000.0,0.00025221,2]
[345727399,1734435057923,-3000.0,0.0002523,2]
[345727400,1734435057932,-3000.0,0.0002524,2]
[345727401,1734435057941,-533.0,0.00025247,2]
[345727402,1734435057951,-2154.0,0.00025247,2]
[345727403,1734435057961,-2367.0,0.00025247,2]
[345727404,1734435057970,-3000.0,0.0002525,2]
[345727405,1734435057979,-1311.01545728,0.00025257,2]
[345727406,1734435057989,-3000.0,0.0002526,2]
[345727407,1734435057999,-3000.0,0.0002527,2]
[345727408,1734435058008,-3000.0,0.0002528,2]
[345727409,1734435058017,-3000.0,0.0002529,2]
[345727410,1734435058027,-3000.0,0.000253,2]
[345727411,1734435058037,-587.0,0.00025302,2]
[345727412,1734435058047,-3000.0,0.0002531,2]
[345727413,1734435058057,-3000.0,0.0002532,2]
[345727414,1734435058066,-3000.0,0.0002533,2]
[345727415,1734435058075,-4188.719303,0.0002534,2]
[345727416,1734435058086,-600.0,0.0002544,2]
[345727417,1734435058096,-191.19,0.00025446,3]
[345727418,1734435058106,-500.0,0.00025479,6]
[345727419,1734435058116,-500.0,0.00025479,6]
[345727420,1734435058125,-500.0,0.00025479,6]
[345727421,1734435058135,-500.0,0.00025479,6]
[345727422,1734435058144,-500.0,0.00025479,6]
[345727423,1734435058155,-269.56,0.00025479,6]
[345727424,1734435058164,-500.0,0.00025479,6]
[345727425,1734435058174,-500.0,0.00025479,6]
[345727426,1734435058183,-602.61,0.00025479,6]
[345727427,1734435058193,-500.0,0.00025479,6]
[345727428,1734435058202,-368.5,0.00025479,6]
[345727429,1734435058212,-500.0,0.00025479,6]
[345727430,1734435058222,-536.09203,0.00025479,6]
[345727431,1734435058231,-168.0,0.00025479,6]
[345727432,1734435058241,-1507.33,0.00025479,2]
[345727433,1734435058251,-500.0,0.00025479,6]
[345727434,1734435058260,-500.0,0.00025479,6]
[345727435,1734435058270,-500.0,0.00025479,6]
[345727436,1734435058281,-712.41,0.00025479,6]
[345727437,1734435058290,-500.0,0.00025479,6]
[345727438,1734435058300,-602.84,0.00025479,6]
[345727439,1734435058310,-500.0,0.00025479,6]
[345727440,1734435058319,-500.0,0.00025479,6]
[345727441,1734435058329,-572.46,0.00025479,6]
[345727442,1734435058338,-500.0,0.00025479,6]
[345727443,1734435058348,-500.0,0.00025479,6]
[345727444,1734435058357,-500.0,0.00025479,6]
[345727445,1734435058367,-500.0,0.00025479,6]
[345727446,1734435058376,-729.43,0.00025479,6]
[345727447,1734435058385,-500.0,0.00025479,6]
[345727448,1734435058394,-230.85049064,0.00025479,6]
[345727449,1734435058404,-500.0,0.00025479,6]
[345727450,1734435058414,-500.0,0.00025479,2]
[345727451,1734435058424,-634.23,0.00025479,6]
[345727452,1734435058433,-718.98,0.00025479,6]
[345727453,1734435058443,-309.13,0.00025479,6]
[345727454,1734435058452,-534.57,0.00025479,6]
[345727455,1734435058462,-500.0,0.00025479,6]
[345727456,1734435058471,-292.17,0.00025479,6]
[345727457,1734435058481,-500.0,0.00025479,6]
[345727458,1734435058491,-273.8,0.00025479,6]
[345727459,1734435058500,-500.0,0.00025479,6]
[345727460,1734435058510,-745.06,0.00025479,6]
[345727461,1734435058519,-2419.74,0.00025479,6]
[345727462,1734435058530,-500.0,0.00025479,6]
[345727463,1734435058540,-3152.57,0.00025479,6]
[345727464,1734435058549,-589.97,0.00025479,6]
[345727465,1734435058559,-500.0,0.00025479,6]
[345727466,1734435058567,-176.92,0.00025479,6]
[345727467,1734435058577,-722.7,0.00025479,6]
[345727468,1734435058586,-3653.15,0.00025479,6]
[345727469,1734435058595,-5312.04,0.00025479,6]
[345727470,1734435058604,-500.0,0.00025479,6]
[345727471,1734435058613,-500.0,0.00025479,6]
[345727472,1734435058623,-14137.99,0.00025479,6]
[345727473,1734435058632,-829.89,0.00025479,6]
[345727474,1734435058641,-500.0,0.00025479,6]
[345727475,1734435058650,-548.2,0.00025479,6]
[345727476,1734435058660,-923.17,0.00025479,6]
[345727477,1734435058669,-500.0,0.00025479,6]
[345727478,1734435058679,-500.0,0.00025479,6]
[345727479,1734435058688,-500.0,0.00025479,6]
[345727480,1734435058698,-500.0,0.00025479,6]
[345727481,1734435058708,-3964.39,0.00025479,5]
[345727482,1734435058717,-985.25,0.00025479,6]
[345727483,1734435058727,-500.0,0.00025479,6]
[345727484,1734435058737,-500.0,0.00025479,6]
[345727485,1734435058747,-1050.66,0.00025479,6]
[345727486,1734435058757,-815.28,0.00025479,6]
[345727487,1734435058766,-500.0,0.00025479,6]
[345727488,1734435058775,-1866.66,0.00025479,6]
[345727489,1734435058785,-724.94,0.00025479,6]
[345727490,1734435058795,-500.0,0.00025479,6]
[345727491,1734435058804,-554.4,0.00025479,6]
[345727492,1734435058814,-734.67,0.00025479,6]
[345727493,1734435058824,-817.91,0.00025479,6]
[345727494,1734435058833,-661.27,0.00025479,6]
[345727495,1734435058846,-654.03,0.00025479,2]
[345727496,1734435058855,-500.0,0.00025479,6]
[345727497,1734435058865,-500.0,0.00025479,6]
[345727498,1734435058875,-735.37,0.00025479,6]
[345727499,1734435058884,-500.0,0.00025479,6]
[345727500,1734435058893,-500.0,0.00025479,6]
[345727501,1734435058903,-2024.81,0.00025479,6]
[345727502,1734435058913,-581.5,0.00025479,6]
[345727503,1734435058923,-500.0,0.00025479,6]
[345727504,1734435058932,-500.0,0.00025479,6]
[345727505,1734435058941,-500.0,0.00025479,6]
[345727506,1734435058951,-500.0,0.00025479,6]
[345727507,1734435058960,-500.0,0.00025479,6]
[345727508,1734435058970,-500.0,0.00025479,6]
[345727509,1734435058979,-500.0,0.00025479,6]
[345727510,1734435058988,-500.0,0.00025479,6]
[345727511,1734435058998,-500.0,0.00025479,6]
[345727512,1734435059007,-2722.0238863,0.000255,2]
[345727513,1734435059017,-1000.0,0.00025521,2]
[345727514,1734435059027,-7148.34034867,0.00025614,120]
[345727515,1734435059037,-10259.62,0.000257,2]
[345727516,1734435059047,-600.0,0.00025705,2]
[345727517,1734435059056,-500.0,0.00025753,7]
[345727518,1734435059065,-196.0,0.00025753,7]
[345727519,1734435059074,-500.0,0.00025753,6]
[345727520,1734435059083,-500.0,0.00025753,6]
[345727521,1734435059092,-500.0,0.00025753,6]
[345727522,1734435059102,-500.0,0.00025753,6]
[345727523,1734435059111,-500.0,0.00025753,6]
[345727524,1734435059121,-500.0,0.00025753,6]
[345727525,1734435059130,-466.11065666,0.00025753,6]
[345727526,1734435059140,-602.61,0.00025753,6]
[345727527,1734435059149,-500.0,0.00025753,6]
[345727528,1734435059159,-500.0,0.00025753,6]
[345727529,1734435059169,-168.0,0.00025753,6]
[345727530,1734435059178,-1507.33,0.00025753,2]
[345727531,1734435059187,-500.0,0.00025753,6]
[345727532,1734435059197,-500.0,0.00025753,6]
[345727533,1734435059207,-500.0,0.00025753,6]
[345727534,1734435059216,-712.41,0.00025753,6]
[345727535,1734435059226,-500.0,0.00025753,6]
[345727536,1734435059235,-602.84,0.00025753,6]
[345727537,1734435059244,-500.0,0.00025753,6]
[345727538,1734435059254,-500.0,0.00025753,6]
[345727539,1734435059263,-572.46,0.00025753,6]
[345727540,1734435059272,-500.0,0.00025753,6]
[345727541,1734435059281,-500.0,0.00025753,6]
[345727542,1734435059290,-152.10006742,0.00025753,6]
[345727543,1734435059299,-500.0,0.00025753,6]
[345727544,1734435059308,-729.43,0.00025753,6]
[345727545,1734435059318,-500.0,0.00025753,6]
[345727546,1734435059327,-500.0,0.00025753,6]
[345727547,1734435059337,-500.0,0.00025753,2]
[345727548,1734435059346,-634.23,0.00025753,6]
[345727549,1734435059356,-718.98,0.00025753,6]
[345727550,1734435059365,-534.57,0.00025753,6]
[345727551,1734435059375,-500.0,0.00025753,6]
[345727552,1734435059386,-500.0,0.00025753,6]
[345727553,1734435059395,-500.0,0.00025753,6]
[345727554,1734435059405,-745.06,0.00025753,6]
[345727555,1734435059414,-2419.74,0.00025753,6]
[345727556,1734435059423,-500.0,0.00025753,6]
[345727557,1734435059432,-3152.57,0.00025753,6]
[345727558,1734435059442,-589.97,0.00025753,6]
[345727559,1734435059451,-500.0,0.00025753,6]
[345727560,1734435059460,-722.7,0.00025753,6]
[345727561,1734435059470,-3653.15,0.00025753,6]
[345727562,1734435059480,-5312.04,0.00025753,6]
[345727563,1734435059489,-500.0,0.00025753,6]
[345727564,1734435059499,-500.0,0.00025753,6]
[345727565,1734435059508,-14137.99,0.00025753,6]
[345727566,1734435059518,-829.89,0.00025753,6]
[345727567,1734435059528,-500.0,0.00025753,6]
[345727568,1734435059538,-548.2,0.00025753,6]
[345727569,1734435059547,-923.17,0.00025753,6]
[345727570,1734435059557,-500.0,0.00025753,6]
[345727571,1734435059566,-500.0,0.00025753,6]
[345727572,1734435059575,-500.0,0.00025753,6]
[345727573,1734435059584,-500.0,0.00025753,6]
[345727574,1734435059594,-3964.39,0.00025753,5]
[345727575,1734435059603,-985.25,0.00025753,6]
[345727576,1734435059613,-500.0,0.00025753,6]
[345727577,1734435059623,-500.0,0.00025753,6]
[345727578,1734435059632,-1050.66,0.00025753,6]
[345727579,1734435059641,-815.28,0.00025753,6]
[345727580,1734435059651,-500.0,0.00025753,6]
[345727581,1734435059660,-1866.66,0.00025753,6]
[345727582,1734435059670,-724.94,0.00025753,6]
[345727583,1734435059680,-500.0,0.00025753,6]
[345727584,1734435059690,-554.4,0.00025753,6]
[345727585,1734435059700,-734.67,0.00025753,6]
[345727586,1734435059709,-817.91,0.00025753,6]
[345727587,1734435059719,-661.27,0.00025753,6]
[345727588,1734435059730,-654.03,0.00025753,2]
[345727589,1734435059740,-500.0,0.00025753,6]
[345727590,1734435059749,-500.0,0.00025753,6]
[345727591,1734435059759,-735.37,0.00025753,6]
[345727592,1734435059769,-500.0,0.00025753,6]
[345727593,1734435059778,-500.0,0.00025753,6]
[345727594,1734435059788,-2024.81,0.00025753,6]
[345727595,1734435059798,-581.5,0.00025753,6]
[345727596,1734435059807,-500.0,0.00025753,6]
[345727597,1734435059817,-500.0,0.00025753,6]
[345727598,1734435059829,-500.0,0.00025753,6]
[345727599,1734435059839,-500.0,0.00025753,6]
[345727600,1734435059848,-500.0,0.00025753,6]
[345727601,1734435059858,-500.0,0.00025753,6]
[345727602,1734435059867,-500.0,0.00025753,6]
[345727603,1734435059878,-500.0,0.00025753,6]
[345727604,1734435059888,-500.0,0.00025753,6]
[345727605,1734435059897,-400.0,0.00025753,2]
[345727606,1734435059909,-172.0,0.00025775,2]
[345727607,1734435059919,-155.0,0.00025826,3]
[345727608,1734435059929,-155.0,0.00025826,3]
[345727609,1734435059939,-155.0,0.00025826,3]
[345727610,1734435059949,-153.0,0.00025851,2]
[345727611,1734435059958,-153.0,0.00025851,2]
[345727612,1734435059967,-151.0,0.00025887,3]
[345727613,1734435059978,-587.0,0.00025895,2]
[345727614,1734435059987,-1311.01545728,0.00025929,2]
[345727615,1734435059997,-500.0,0.00025973,2]
[345727616,1734435060007,-178.96933096,0.00025973,2]
[345727617,1734435060017,-500.0,0.00025973,2]
[345727618,1734435060026,-500.0,0.00025973,2]
[345727619,1734435060036,-103813.88589615,0.00026,30]
[345727620,1734435060046,-1021.6,0.00026,31]
[345727621,1734435060055,-332.0,0.00026,12]
[345727622,1734435060065,-151.0,0.00026,7]
[345727623,1734435060075,-151.0,0.00026,7]
[345727624,1734435060086,-151.0,0.00026,7]
[345727625,1734435060097,-151.0,0.00026,7]
[345727626,1734435060108,-151.0,0.00026,7]
[345727627,1734435060117,-151.0,0.00026,7]
[345727628,1734435060127,-190.332689,0.00026,7]
[345727629,1734435060137,-1467.98138574,0.00026,30]
[345727630,1734435060147,-1467.98138574,0.00026,30]
[345727631,1734435060157,-1467.98138574,0.00026,30]
[345727632,1734435060167,-1382837.65595649,0.00026,20]
[345727633,1734435060177,-11061.50753899,0.00026,30]
[345727634,1734435060187,-1371.37015412,0.00026,2]
[345727635,1734435060196,-12000.00000142,0.00026,30]
[345727636,1734435060206,-16261.42427165,0.00026,2]
[345727637,1734435060215,-4379.03381353,0.00026,7]
[345727638,1734435060225,-500.0,0.00026027,6]
[345727639,1734435060235,-500.0,0.00026027,6]
[345727640,1734435060244,-500.0,0.00026027,6]
[345727641,1734435060254,-500.0,0.00026027,6]
[345727642,1734435060264,-500.0,0.00026027,6]
[345727643,1734435060274,-500.0,0.00026027,6]
[345727644,1734435060285,-602.61,0.00026027,6]
[345727645,1734435060295,-500.0,0.00026027,6]
[345727646,1734435060305,-500.0,0.00026027,6]
[345727647,1734435060315,-168.0,0.00026027,6]
[345727648,1734435060326,-1507.33,0.00026027,2]
[345727649,1734435060335,-500.0,0.00026027,6]
[345727650,1734435060345,-500.0,0.00026027,6]
[345727651,1734435060355,-500.0,0.00026027,6]
[345727652,1734435060364,-712.41,0.00026027,6]
[345727653,1734435060374,-500.0,0.00026027,6]
[345727654,1734435060384,-602.84,0.00026027,6]
[345727655,1734435060393,-500.0,0.00026027,6]
[345727656,1734435060403,-500.0,0.00026027,6]
[345727657,1734435060413,-572.46,0.00026027,6]
[345727658,1734435060422,-500.0,0.00026027,6]
[345727659,1734435060432,-500.0,0.00026027,6]
[345727660,1734435060442,-500.0,0.00026027,6]
[345727661,1734435060553,-729.43,0.00026027,6]
[345727662,1734435060575,-500.0,0.00026027,6]
[345727663,1734435060585,-392.54804584,0.00026027,6]
[345727664,1734435060596,-500.0,0.00026027,2]
[345727665,1734435060606,-634.23,0.00026027,6]
[345727666,1734435060616,-718.98,0.00026027,6]
[345727667,1734435060626,-534.57,0.00026027,6]
[345727668,1734435060637,-500.0,0.00026027,6]
[345727669,1734435060646,-500.0,0.00026027,6]
[345727670,1734435060656,-500.0,0.00026027,6]
[345727671,1734435060666,-745.06,0.00026027,6]
[345727672,1734435060675,-2419.74,0.00026027,6]
[345727673,1734435060684,-500.0,0.00026027,6]
[345727674,1734435060694,-3152.57,0.00026027,6]
[345727675,1734435060704,-589.97,0.00026027,6]
[345727676,1734435060713,-500.0,0.00026027,6]
[345727677,1734435060723,-722.7,0.00026027,6]
[345727678,1734435060733,-3653.15,0.00026027,6]
[345727679,1734435060743,-5312.04,0.00026027,6]
[345727680,1734435060753,-474.6435149,0.00026027,6]
[345727681,1734435060762,-500.0,0.00026027,6]
[345727682,1734435060772,-14137.99,0.00026027,6]
[345727683,1734435060783,-829.89,0.00026027,6]
[345727684,1734435060793,-500.0,0.00026027,6]
[345727685,1734435060803,-548.2,0.00026027,6]
[345727686,1734435060813,-923.17,0.00026027,6]
[345727687,1734435060825,-472.83913672,0.00026027,6]
[345727688,1734435060835,-500.0,0.00026027,6]
[345727689,1734435060848,-475.97163632,0.00026027,6]
[345727690,1734435060858,-500.0,0.00026027,6]
[345727691,1734435060867,-3964.39,0.00026027,5]
[345727692,1734435060877,-985.25,0.00026027,6]
[345727693,1734435060888,-500.0,0.00026027,6]
[345727694,1734435060897,-500.0,0.00026027,6]
[345727695,1734435060907,-1050.66,0.00026027,6]
[345727696,1734435060918,-815.28,0.00026027,6]
[345727697,1734435060929,-500.0,0.00026027,6]
[345727698,1734435060939,-1866.66,0.00026027,6]
[345727699,1734435060948,-724.94,0.00026027,6]
[345727700,1734435060959,-500.0,0.00026027,6]
[345727701,1734435060968,-554.4,0.00026027,6]
[345727702,1734435060978,-734.67,0.00026027,6]
[345727703,1734435060988,-817.91,0.00026027,6]
[345727704,1734435060998,-661.27,0.00026027,6]
[345727705,1734435061008,-654.03,0.00026027,2]
[345727706,1734435061019,-500.0,0.00026027,6]
[345727707,1734435061029,-500.0,0.00026027,6]
[345727708,1734435061039,-735.37,0.00026027,6]
[345727709,1734435061049,-500.0,0.00026027,6]
[345727710,1734435061059,-500.0,0.00026027,6]
[345727711,1734435061069,-2024.81,0.00026027,6]
[345727712,1734435061078,-581.5,0.00026027,6]
[345727713,1734435061088,-500.0,0.00026027,6]
[345727714,1734435061098,-500.0,0.00026027,6]
[345727715,1734435061107,-500.0,0.00026027,6]
[345727716,1734435061117,-500.0,0.00026027,6]
[345727717,1734435061127,-536.47339765,0.00026027,6]
[345727718,1734435061136,-331.5,0.00026027,6]
[345727719,1734435061146,-500.0,0.00026027,6]
[345727720,1734435061156,-500.0,0.00026027,6]
[345727721,1734435061165,-500.0,0.00026027,6]
[345727722,1734435061175,-3197.13400892,0.000262,5]
[345727723,1734435061184,-224.99,0.00026213,3]
[345727724,1734435061194,-500.22503897,0.00026222,2]
[345727725,1734435061204,-1017.67491832,0.00026222,2]
[345727726,1734435061214,-155.0,0.0002623,3]
[345727727,1734435061223,-155.0,0.0002623,3]
[345727728,1734435061234,-224.09,0.0002623,3]
[345727729,1734435061243,-500.0,0.00026301,6]
[345727730,1734435061253,-500.0,0.00026301,6]
[345727731,1734435061262,-500.0,0.00026301,6]
[345727732,1734435061271,-500.0,0.00026301,6]
[345727733,1734435061283,-500.0,0.00026301,6]
[345727734,1734435061294,-500.0,0.00026301,6]
[345727735,1734435061304,-602.61,0.00026301,6]
[345727736,1734435061313,-500.0,0.00026301,6]
[345727737,1734435061323,-500.0,0.00026301,6]
[345727738,1734435061334,-168.0,0.00026301,6]
[345727739,1734435061343,-1507.33,0.00026301,2]
[345727740,1734435061353,-500.0,0.00026301,6]
[345727741,1734435061363,-500.0,0.00026301,6]
[345727742,1734435061372,-500.0,0.00026301,6]
[345727743,1734435061382,-712.41,0.00026301,6]
[345727744,1734435061392,-500.0,0.00026301,6]
[345727745,1734435061402,-602.84,0.00026301,6]
[345727746,1734435061412,-500.0,0.00026301,6]
[345727747,1734435061422,-500.0,0.00026301,6]
[345727748,1734435061432,-572.46,0.00026301,6]
[345727749,1734435061442,-500.0,0.00026301,6]
[345727750,1734435061452,-483.16934004,0.00026301,6]
[345727751,1734435061461,-500.0,0.00026301,6]
[345727752,1734435061471,-729.43,0.00026301,6]
[345727753,1734435061481,-323.42459928,0.00026301,6]
[345727754,1734435061491,-500.0,0.00026301,2]
[345727755,1734435061501,-634.23,0.00026301,6]
[345727756,1734435061511,-718.98,0.00026301,6]
[345727757,1734435061522,-534.57,0.00026301,6]
[345727758,1734435061534,-500.0,0.00026301,6]
[345727759,1734435061543,-500.0,0.00026301,6]
[345727760,1734435061553,-500.0,0.00026301,6]
[345727761,1734435061563,-745.06,0.00026301,6]
[345727762,1734435061572,-2419.74,0.00026301,6]
[345727763,1734435061581,-500.0,0.00026301,6]
[345727764,1734435061591,-3152.57,0.00026301,6]
[345727765,1734435061602,-589.97,0.00026301,6]
[345727766,1734435061612,-500.0,0.00026301,6]
[345727767,1734435061621,-722.7,0.00026301,6]
[345727768,1734435061632,-3653.15,0.00026301,6]
[345727769,1734435061642,-5312.04,0.00026301,6]
[345727770,1734435061652,-500.0,0.00026301,6]
[345727771,1734435061661,-14137.99,0.00026301,6]
[345727772,1734435061672,-829.89,0.00026301,6]
[345727773,1734435061681,-500.0,0.00026301,6]
[345727774,1734435061691,-548.2,0.00026301,6]
[345727775,1734435061701,-923.17,0.00026301,6]
[345727776,1734435061710,-500.0,0.00026301,6]
[345727777,1734435061720,-500.0,0.00026301,6]
[345727778,1734435061730,-3964.39,0.00026301,5]
[345727779,1734435061740,-985.25,0.00026301,6]
[345727780,1734435061752,-500.0,0.00026301,6]
[345727781,1734435061783,-500.0,0.00026301,6]
[345727782,1734435061804,-1050.66,0.00026301,6]
[345727783,1734435061815,-815.28,0.00026301,6]
[345727784,1734435061827,-500.0,0.00026301,6]
[345727785,1734435061840,-1866.66,0.00026301,6]
[345727786,1734435061849,-724.94,0.00026301,6]
[345727787,1734435061859,-500.0,0.00026301,6]
[345727788,1734435061869,-554.4,0.00026301,6]
[345727789,1734435061878,-734.67,0.00026301,6]
[345727790,1734435061887,-817.91,0.00026301,6]
[345727791,1734435061897,-661.27,0.00026301,6]
[345727792,1734435061907,-654.03,0.00026301,2]
[345727793,1734435061918,-500.0,0.00026301,6]
[345727794,1734435061928,-500.0,0.00026301,6]
[345727795,1734435061938,-735.37,0.00026301,6]
[345727796,1734435061948,-500.0,0.00026301,6]
[345727797,1734435061958,-500.0,0.00026301,6]
[345727798,1734435061968,-2024.81,0.00026301,6]
[345727799,1734435061979,-581.5,0.00026301,6]
[345727800,1734435061988,-500.0,0.00026301,6]
[345727801,1734435061998,-614.87454533,0.00026301,6]
[345727802,1734435062008,-500.0,0.00026301,6]
[345727803,1734435062018,-500.0,0.00026301,6]
[345727804,1734435062028,-500.0,0.00026301,6]
[345727805,1734435062038,-500.0,0.00026301,6]
[345727806,1734435062048,-500.0,0.00026301,6]
[345727807,1734435062057,-151.0,0.00026369,6]
[345727808,1734435062067,-2500.0,0.00026374,3]
[345727809,1734435062078,-2500.0,0.00026382,3]
[345727810,1734435062088,-660.0,0.00026384,2]
[345727811,1734435062097,-2500.0,0.00026391,3]
[345727812,1734435062107,-3047.96944093,0.000264,2]
[345727813,1734435062117,-2500.0,0.000264,3]
[345727814,1734435062127,-500.0,0.00026473,2]
[345727815,1734435062136,-503.80097522,0.00026473,2]
[345727816,1734435062146,-17766.00188431,0.0002649,2]
[345727817,1734435062156,-266.84464163,0.00026499,4]
[345727818,1734435062166,-407778.098462,0.00026499,30]
[345727819,1734435062175,-1676774.88099195,0.000265,5]
[345727820,1734435062297,-291256.8460344,0.000265,5]
[345727845,1734436005577,166.364037,0.00013973,2]
[345727917,1734436232245,-2780.7556104,0.00020812,2]
[345727919,1734436232254,-175.02516,0.00021169,2]
[345727921,1734436232264,-4077.70400711,0.00021179,2]
[345727923,1734436232276,-424.2395,0.00021179,2]
[345727925,1734436232287,-439.565,0.00021179,2]
[345727951,1734436239964,-222.27798721,0.00021179,2]
[345727952,1734436239975,-300.0,0.00021209,2]
[345727953,1734436239985,-3220.7072006,0.0002121,11]
[345727954,1734436239995,-710.0479808,0.00021321,2]
[345727956,1734436240005,-411.6861664,0.00021334,2]
[345727958,1734436240015,-269.518729,0.00021569,2]
[345727960,1734436240024,-4329.03043332,0.00022447,2]
[345728026,1734436243048,-3583.91254572,0.00022447,2]
[345728027,1734436243112,-16987.05702096,0.00022447,2]
[345728028,1734436243122,-190.6606073,0.00022808,2]
[345728029,1734436243132,-178.27,0.00022896,2]
[345728030,1734436243141,-420.0,0.0002333,2]
[345728031,1734436243150,-2004.94709402,0.00024555,3]
[345728032,1734436243165,-2004.94709402,0.00024555,3]
[345728033,1734436243174,-666.0,0.00024555,2]